bitfinex-derivatives/quotes_SOLF0:USTF0_20250207
["timestamp","ask_amount","ask_price","bid_price","bid_amount"]
[1738945920621,5.0699,197.16,197.13,0.0371733]
[1738945920824,0.03621208,197.17,197.13,0.0371733]
[1738945921321,5.0697,197.16,197.13,0.0371733]
[1738945922519,0.03621208,197.17,197.13,0.0371733]
[1738945923120,5.10571208,197.17,197.13,0.0371733]
[1738945923627,0.03621208,197.17,197.13,0.0371733]
[1738945924317,0.03621208,197.17,197.13,5.1075733]
[1738945924522,0.03621208,197.17,197.13,0.0371733]
[1738945924927,0.03621208,197.17,197.13,5.1075733]
[1738945925126,0.03621208,197.17,197.13,0.0371733]
[1738945925522,0.03621208,197.17,197.14,5.07]
[1738945926020,0.03621208,197.17,197.13,0.0371733]
[1738945926229,4.54,197.25,197.13,192.0371733]
[1738945926425,4.54,197.25,197.13,192.0]
[1738945927528,4.54,197.25,197.17,0.03256342]
[1738945927829,26.75156582,197.25,197.17,0.03256342]
[1738945930032,4.54,197.25,197.17,0.03256342]
[1738945930622,22.21156582,197.29,197.17,0.03256342]
[1738945930827,22.21156582,197.29,197.13,192.0]
[1738945931025,27.27806582,197.29,197.23,5.0678]
[1738945931329,22.21156582,197.29,197.21,0.03779827]
[1738945931725,5.0672,197.26,197.21,0.03779827]
[1738945932127,22.21156582,197.29,197.21,0.03779827]
[1738945932628,13.88789647,197.22,197.21,0.03779827]
[1738945932828,13.88789647,197.22,197.13,192.0]
[1738945933029,13.88789647,197.22,197.1,1.5459]
[1738945933030,13.88789647,197.16,197.1,8.57613513]
[1738945933727,13.88789647,197.19,197.1,8.57613513]
[1738945934225,0.03540152,197.15,197.11,0.03363991]
[1738945935424,0.03540152,197.15,197.14,5.0702]
[1738945936031,0.03540152,197.15,197.12,5.0705]
[1738945936230,0.03540152,197.15,197.11,0.03363991]
[1738945937029,0.03540152,197.15,197.14,5.0702]
[1738945937532,5.0684,197.21,197.11,0.03363991]
[1738945937733,13.88789647,197.22,197.11,0.03363991]
[1738945937930,13.88789647,197.25,197.12,13.88789647]
[1738945938130,5.0681,197.23,197.18,5.0692]
[1738945938435,13.88789647,197.28,197.12,205.88789647]
[1738945938638,5.0676,197.24,197.19,5.10609818]
[1738945938836,13.88789647,197.28,197.19,0.03729818]
[1738945939236,13.88789647,197.31,197.19,0.03729818]
[1738945939431,13.88789647,197.31,197.19,195.0709]
[1738945939737,13.88789647,197.31,197.23,0.03730799]
[1738945940133,13.88789647,197.28,197.23,0.03730799]
[1738945940528,13.88789647,197.28,197.19,195.0709]
[1738945940529,13.88789647,197.28,197.2,5.0686]
[1738945940729,9.614,197.35,197.24,0.03601564]
[1738945940730,22.20671796,197.3,197.24,0.03601564]
[1738945941237,5.0666,197.29,197.24,0.03601564]
[1738945941435,22.20671796,197.3,197.24,0.03601564]
[1738945941639,22.20671796,197.26,197.13,192.0]
[1738945941937,5.0684,197.21,197.14,5.0702]
[1738945942138,22.20671796,197.22,197.13,192.0]
[1738945942738,0.03283862,197.19,197.16,0.03795912]
[1738945943840,22.20671796,197.18,197.16,0.03795912]
[1738945944037,0.03283862,197.19,197.16,0.03795912]
[1738945945640,5.0694,197.17,197.16,0.03795912]
[1738945946340,0.03283862,197.19,197.16,0.03795912]
[1738945948134,5.0694,197.17,197.16,0.03795912]
[1738945948440,22.20671796,197.18,197.11,1.5973]
[1738945948641,5.0704,197.14,197.11,1.5973]
[1738945949344,5.0702,197.14,197.11,1.5973]
[1738945949639,0.03852391,197.14,197.11,0.03473905]
[1738945951641,5.0705,197.13,197.11,0.03473905]
[1738945952142,4.54,197.13,197.05,1.6405]
[1738945952436,22.20671796,197.1,197.05,1.6405]
[1738945953239,22.20671796,197.1,196.98,10.21233513]
[1738945953439,0.03767974,197.09,197.06,0.0372612]
[1738945953735,0.03767974,197.09,197.07,5.0718]
[1738945954038,4.54,197.13,197.08,1.6505]
[1738945954440,22.20671796,197.18,197.08,1.6505]
[1738945954841,5.0699,197.16,197.09,5.0712]
[1738945955144,22.20671796,197.18,197.08,1.6505]
[1738945955446,0.03698574,197.14,197.11,0.03637801]
[1738945957840,5.0707,197.13,197.11,0.03637801]
[1738945958045,0.03698574,197.14,197.11,0.03637801]
[1738945961253,22.2437037,197.14,197.11,0.03637801]
[1738945962253,22.2437037,197.14,197.01,1.5745]
[1738945962452,22.20671796,197.09,197.01,1.5745]
[1738945962651,22.20671796,197.05,196.98,6.6849]
[1738945962946,22.20671796,197.05,196.98,1.6106]
[1738945963147,5.0733,197.02,196.98,1.6106]
[1738945963347,0.03868221,197.03,197.0,0.03550625]
[1738945965154,5.11178221,197.03,197.0,0.03550625]
[1738945965746,0.03868221,197.03,197.0,0.03550625]
[1738945967146,0.7037,197.13,197.05,5.0725]
[1738945967147,22.20671796,197.13,197.05,5.0725]
[1738945967343,26.72671796,197.18,197.01,1.5928]
[1738945967753,5.071,197.12,197.05,5.0723]
[1738945967953,22.20671796,197.14,197.01,1.5928]
[1738945968348,0.03617395,197.09,197.06,0.03908048]
[1738945968755,22.20671796,197.1,197.01,1.5928]
[1738945968958,5.10376248,197.09,197.06,0.03456261]
[1738945969555,5.0718,197.08,197.06,0.03456261]
[1738945969753,0.03226248,197.09,197.06,0.03456261]
[1738945970154,5.072,197.07,197.06,0.03456261]
[1738945970457,22.20671796,197.06,196.99,5.074]
[1738945970956,5.0727,197.05,197.0,5.0738]
[1738945971359,0.03533298,197.04,197.01,0.03498225]
[1738945974055,22.20671796,197.02,197.01,0.03498225]
[1738945975763,27.28001796,197.02,197.01,0.03498225]
[1738945976463,5.0743,196.98,196.91,4.7931]
[1738945976765,22.20671796,196.98,196.91,3.1815]
[1738945976963,5.0749,196.96,196.91,3.1815]
[1738945977363,22.20671796,196.98,196.91,1.5856]
[1738945977560,22.20671796,196.94,196.82,28.12094052]
[1738945977867,22.20671796,196.9,196.82,28.12094052]
[1738945978061,27.28311796,196.9,196.82,28.12094052]
[1738945978261,22.20671796,196.9,196.82,28.12094052]
[1738945978662,5.0769,196.88,196.82,33.19914052]
[1738945978864,5.10985909,196.88,196.84,0.03758003]
[1738945979067,0.03295909,196.88,196.84,0.03758003]
[1738945980967,4.52,196.95,196.84,0.03758003]
[1738945981170,22.20671796,196.98,196.84,192.03758003]
[1738945981369,22.20671796,197.02,196.85,23.72561796]
[1738945982163,5.332e-05,196.95,196.92,0.03878754]
[1738945982562,22.20671796,197.02,196.9,1.5526]
[1738945982871,22.20671796,196.98,196.9,1.5526]
[1738945983359,5.0748,196.96,196.92,0.03897227]
[1738945983564,5.11220696,196.96,196.92,0.03897227]
[1738945984567,5.0751,196.95,196.92,0.03897227]
[1738945984772,0.03740696,196.96,196.92,0.03897227]
[1738945985271,5.0756,196.94,196.92,0.03897227]
[1738945985671,0.03740696,196.96,196.92,0.03897227]
[1738945988478,22.20671796,197.06,196.92,0.03897227]
[1738945988673,22.20671796,197.06,196.9,1.5526]
[1738945988975,22.20671796,197.06,196.92,22.20671796]
[1738945989172,22.20671796,197.1,197.05,5.0725]
[1738945989377,22.20671796,197.1,196.96,22.20671796]
[1738945989570,0.03336965,197.09,197.06,0.03267511]
[1738945989769,22.20671796,197.14,197.0,22.20671796]
[1738945989968,22.20671796,197.07,197.06,0.03263316]
[1738945990176,22.20671796,197.07,197.01,1.494]
[1738945991173,22.20671796,197.03,196.97,5.0743]
[1738945991374,22.20671796,197.03,197.02,0.03814431]
[1738945991679,22.20671796,197.03,196.97,1.494]
[1738945991881,22.20671796,197.03,197.01,0.03870595]
[1738945993573,0.0388275,197.04,197.01,0.03870595]
[1738945994079,0.0388275,197.04,197.03,5.073]
[1738945994473,0.0388275,197.04,197.01,0.03870595]
[1738945994675,0.0388275,197.04,197.01,5.11210595]
[1738945995184,26.72671796,197.15,197.01,192.03870595]
[1738945995481,26.72671796,197.15,197.02,1.5887]
[1738945995984,26.72671796,197.15,197.03,1.57]
[1738945996180,0.03349255,197.1,197.07,0.03215536]
[1738945998388,100.44,197.19,197.07,0.03215536]
[1738945998588,104.96,197.19,197.03,1.57]
[1738945999289,5.071,197.11,197.05,5.0725]
[1738945999685,0.0331039,197.1,197.06,0.03693935]
[1738945999890,9.5897,197.16,197.1,5.0711]
[1738946000085,4.52,197.16,197.03,1.57]
[1738946000390,4.52,197.16,197.05,5.0725]
[1738946000589,4.52,197.16,197.03,1.57]
[1738946000590,22.20671796,197.13,197.03,1.57]
[1738946001090,5.0718,197.08,197.06,0.03310666]
[1738946001386,22.20671796,197.13,197.06,0.03310666]
[1738946001580,5.071,197.12,197.07,5.072]
[1738946001785,22.20671796,197.13,197.06,0.03310666]
[1738946002286,22.20671796,197.13,197.08,5.0717]
[1738946002690,22.20671796,197.13,197.06,0.03310666]
[1738946003282,5.0709,197.12,197.07,5.0719]
[1738946003490,22.20671796,197.13,197.07,5.0719]
[1738946003690,22.20671796,197.13,197.07,6.6925]
[1738946004088,22.20671796,197.17,197.07,1.6206]
[1738946004493,22.20671796,197.17,197.1,0.03353933]
[1738946004494,5.0705,197.13,197.1,0.03353933]
[1738946004893,22.20671796,197.17,197.1,0.03353933]
[1738946005095,100.44,197.19,197.1,0.03353933]
[1738946005296,5.0701,197.15,197.1,5.10453933]
[1738946006098,100.44,197.19,197.1,0.03353933]
[1738946006397,22.20671796,197.16,197.1,0.03353933]
[1738946006793,5.0704,197.14,197.1,0.03353933]
[1738946006989,22.20671796,197.16,197.1,0.03353933]
[1738946007188,100.44,197.19,197.1,0.03353933]
[1738946007397,22.20671796,197.16,197.1,0.03353933]
[1738946008800,5.0705,197.13,197.1,0.03353933]
[1738946009795,100.44,197.19,197.1,0.03353933]
[1738946011299,5.0697,197.17,197.1,5.10473933]
[1738946011699,5.0702,197.14,197.1,0.03353933]
[1738946011906,22.20671796,197.16,197.1,0.03353933]
[1738946013007,104.96,197.19,197.1,0.03353933]
[1738946013502,5.0694,197.18,197.12,5.0707]
[1738946014404,5.0694,197.18,197.1,0.03353933]
[1738946014405,100.44,197.19,197.1,0.03353933]
[1738946014703,26.72671796,197.24,197.1,0.03353933]
[1738946014895,4.52,197.24,197.1,1.5246]
[1738946015095,9.5877,197.24,197.15,0.0387663]
[1738946015301,26.72671796,197.24,197.15,0.0387663]
[1738946017208,22.20671796,197.24,197.15,0.0387663]
[1738946017408,22.97751796,197.3,197.15,0.0387663]
[1738946017600,22.97751796,197.3,197.1,1.5246]
[1738946017601,22.97751796,197.3,197.13,22.20671796]
[1738946017797,22.97751796,197.3,197.21,0.03770662]
[1738946018605,5.0664,197.29,197.22,5.0681]
[1738946018811,22.20671796,197.3,197.22,5.0681]
[1738946019406,27.27301796,197.3,197.21,5.10600662]
[1738946019602,22.20671796,197.3,197.21,5.10600662]
[1738946019802,22.20671796,197.3,197.21,0.03770662]
[1738946020305,5.0664,197.29,197.21,0.03770662]
[1738946020807,22.20671796,197.3,197.21,0.03770662]
[1738946021007,5.0674,197.26,197.21,0.03770662]
[1738946021399,22.20671796,197.3,197.21,0.03770662]
[1738946021702,5.0669,197.27,197.21,0.03770662]
[1738946022203,5.0672,197.26,197.21,0.03770662]
[1738946022409,22.20671796,197.3,197.21,0.03770662]
[1738946022608,49.37922227,197.31,197.21,0.03770662]
[1738946023013,5.0664,197.29,197.22,5.0679]
[1738946023209,5.0664,197.29,197.23,1.5892]
[1738946023610,26.70671796,197.34,197.23,1.5892]
[1738946023914,26.70671796,197.34,197.23,6.657]
[1738946024109,26.70671796,197.34,197.27,0.03542111]
[1738946024305,5.0664,197.29,197.27,0.03542111]
[1738946025010,22.20671796,197.34,197.27,0.03542111]
[1738946025312,22.20671796,197.4,197.27,0.03542111]
[1738946025510,5.2708,197.39,197.27,0.03542111]
[1738946025714,5.0646,197.36,197.31,0.03437757]
[1738946026114,5.0649,197.35,197.31,0.03437757]
[1738946026716,5.0651,197.34,197.31,0.03437757]
[1738946026919,5.2708,197.39,197.31,0.03437757]
[1738946027124,22.20671796,197.34,197.31,0.03437757]
[1738946027418,5.0656,197.32,197.31,0.03437757]
[1738946027812,5.0646,197.36,197.31,0.03437757]
[1738946028016,26.70671796,197.38,197.31,0.03437757]
[1738946029015,22.20671796,197.34,197.31,0.03437757]
[1738946029515,22.20671796,197.34,197.23,1.5892]
[1738946029716,22.20671796,197.3,197.23,1.5892]
[1738946030520,27.27301796,197.3,197.23,6.6569]
[1738946030819,0.03607889,197.28,197.25,0.03685788]
[1738946032629,0.03607889,197.28,197.27,5.0669]
[1738946035328,5.0651,197.34,197.28,5.0665]
[1738946035524,10.3448,197.39,197.23,1.5892]
[1738946036527,10.3448,197.39,197.29,0.03669191]
[1738946036730,22.20671796,197.34,197.29,0.03669191]
[1738946037129,10.3448,197.39,197.29,0.03669191]
[1738946037330,5.0652,197.34,197.29,0.03669191]
[1738946038530,10.3448,197.39,197.29,0.03669191]
[1738946038731,22.20671796,197.33,197.29,0.03669191]
[1738946038927,5.0661,197.3,197.29,0.03669191]
[1738946039930,5.0659,197.31,197.29,0.03669191]
[1738946040231,22.20671796,197.33,197.29,0.03669191]
[1738946040534,22.20671796,197.33,197.23,1.5892]
[1738946041627,5.065,197.35,197.23,1.5892]
[1738946041834,0.03783489,197.3,197.26,0.03318875]
[1738946042233,0.03783489,197.3,197.27,5.0667]
[1738946042635,0.03783489,197.3,197.26,0.03318875]
[1738946042831,0.03783489,197.3,197.28,5.0664]
[1738946043231,0.03783489,197.3,197.27,5.0668]
[1738946043536,0.03783489,197.3,197.26,0.03318875]
[1738946044135,15.1827,197.51,197.26,0.03318875]
[1738946044136,4.5,197.42,197.26,0.03318875]
[1738946044335,4.5,197.42,197.26,1.6306]
[1738946045332,4.5,197.42,197.32,0.03683999]
[1738946046235,5.0641,197.38,197.32,0.03683999]
[1738946047237,5.074,197.42,197.35,5.0648]
[1738946047434,0.6979,197.47,197.35,5.0648]
[1738946047633,0.6979,197.47,197.37,0.03577132]
[1738946048228,22.20671796,197.41,197.37,0.03577132]
[1738946048636,5.064,197.38,197.37,0.03577132]
[1738946050034,0.6979,197.47,197.37,0.03577132]
[1738946050936,5.064,197.38,197.37,0.03577132]
[1738946051938,5.0651,197.34,197.31,1.5214]
[1738946052140,22.20671796,197.42,197.29,5.0662]
[1738946052731,22.20671796,197.42,197.27,1.5193]
[1738946052936,0.03577132,197.36,197.33,0.03865389]
[1738946053741,22.20671796,197.46,197.37,5.0642]
[1738946054042,22.20671796,197.5,197.34,3.1419]
[1738946054245,5.0615,197.48,197.41,5.0632]
[1738946054743,5.0617,197.47,197.4,5.0635]
[1738946054944,22.20671796,197.5,197.43,0.03476975]
[1738946055244,22.20671796,197.5,197.34,3.1419]
[1738946055446,22.20671796,197.5,197.45,0.03769092]
[1738946055640,22.20671796,197.5,197.34,3.1419]
[1738946055940,5.0622,197.46,197.34,3.1419]
[1738946056144,22.20671796,197.5,197.4,0.03295721]
[1738946056340,22.20671796,197.46,197.4,0.03295721]
[1738946056540,5.0631,197.42,197.35,5.0648]
[1738946056739,5.0631,197.42,197.41,0.03583149]
[1738946056935,5.0631,197.42,197.35,5.0648]
[1738946057250,5.0627,197.44,197.4,0.03594549]
[1738946057442,22.20671796,197.46,197.34,3.1419]
[1738946057643,22.20671796,197.43,197.4,0.03736429]
[1738946057836,22.20671796,197.43,197.34,1.4929]
[1738946058042,5.0632,197.42,197.37,0.03652538]
[1738946058548,22.20671796,197.43,197.37,0.03652538]
[1738946060647,26.70671796,197.5,197.37,0.03652538]
[1738946060648,26.70671796,197.51,197.37,0.03652538]
[1738946060845,5.0617,197.48,197.33,22.20671796]
[1738946061151,26.70671796,197.51,197.42,0.03318448]
[1738946061349,5.0615,197.48,197.42,0.03318448]
[1738946062239,5.0613,197.49,197.42,5.09618448]
[1738946062639,22.20671796,197.51,197.42,0.03318448]
[1738946062841,4.5,197.53,197.42,0.03318448]
[1738946063039,5.0607,197.51,197.43,5.0627]
[1738946063248,5.0607,197.51,197.46,0.03899069]
[1738946063853,5.2374,197.54,197.46,0.03899069]
[1738946064742,5.0605,197.52,197.46,0.03899069]
[1738946065547,0.7374,197.54,197.46,0.03899069]
[1738946065548,5.0602,197.53,197.46,0.03899069]
[1738946065854,4.5,197.57,197.46,0.03899069]
[1738946066149,5.0599,197.55,197.47,5.0617]
[1738946066541,4.5,197.57,197.49,0.03676907]
[1738946067554,5.0596,197.56,197.49,0.03676907]
[1738946067758,22.20671796,197.58,197.49,0.03676907]
[1738946068051,0.7377,197.59,197.5,5.0609]
[1738946068251,0.7377,197.59,197.49,0.03676907]
[1738946068652,22.20671796,197.58,197.49,0.03676907]
[1738946069849,22.20671796,197.55,197.49,0.03676907]
[1738946071454,22.20671796,197.58,197.49,0.03676907]
[1738946074657,13.84472925,197.54,197.49,0.03676907]
[1738946075554,13.84472925,197.57,197.49,0.03676907]
[1738946076461,13.84472925,197.57,197.5,5.061]
[1738946076753,13.84472925,197.57,197.49,0.03676907]
[1738946077061,13.84472925,197.57,197.49,5.09796907]
[1738946078355,13.84472925,197.6,197.49,0.03676907]
[1738946078560,18.32472925,197.63,197.5,16.98652925]
[1738946078760,18.32472925,197.63,197.53,0.03319102]
[1738946079459,5.8094,197.69,197.53,13.87792027]
[1738946079460,9.554,197.65,197.53,13.87792027]
[1738946079664,13.84472925,197.63,197.54,5.0597]
[1738946079860,13.84472925,197.63,197.57,0.03696188]
[1738946081565,13.84472925,197.66,197.57,0.03696188]
[1738946081866,13.84472925,197.63,197.57,0.03696188]
[1738946082060,13.84472925,197.6,197.5,3.1418]
[1738946082261,13.84472925,197.57,197.5,8.2026]
[1738946082463,13.84472925,197.57,197.53,0.03669411]
[1738946082758,13.84472925,197.6,197.53,5.09689411]
[1738946083059,13.84472925,197.6,197.53,5.0602]
[1738946083266,13.84472925,197.6,197.55,0.03375872]
[1738946086766,13.84472925,197.57,197.41,205.84472925]
[1738946086962,13.84472925,197.51,197.42,3.1376]
[1738946087158,13.84472925,197.51,197.43,5.0627]
[1738946087358,13.84472925,197.51,197.42,3.1376]
[1738946087663,13.84472925,197.54,197.42,3.1376]
[1738946088167,0.03310976,197.5,197.46,0.0334339]
[1738946088360,0.03310976,197.5,197.47,5.0615]
[1738946090365,0.03310976,197.5,197.46,0.0334339]
[1738946091767,0.03310976,197.5,197.47,5.0615]
[1738946091968,0.03310976,197.5,197.46,0.0334339]
[1738946092365,0.03310976,197.5,197.47,5.0617]
[1738946093861,0.03310976,197.5,197.46,5.0954339]
[1738946094067,0.03310976,197.5,197.46,0.0334339]
[1738946094268,13.87783901,197.5,197.46,0.0334339]
[1738946095463,0.03310976,197.5,197.46,0.0334339]
[1738946095664,0.03310976,197.5,197.46,5.0952339]
[1738946096967,0.03310976,197.5,197.48,5.0613]
[1738946098875,0.03310976,197.5,197.46,5.0952339]
[1738946099171,0.03310976,197.5,197.46,0.0334339]
[1738946099776,13.87783901,197.5,197.46,0.0334339]
[1738946100367,5.0624,197.45,197.39,28.12094052]
[1738946100574,13.84472925,197.43,197.39,28.12094052]
[1738946101174,13.84472925,197.46,197.39,28.12094052]
[1738946101675,0.03440642,197.44,197.41,0.03880061]
[1738946106876,13.84472925,197.53,197.41,0.03880061]
[1738946107268,13.84472925,197.53,197.4,1.6314]
[1738946107677,13.84472925,197.53,197.41,1.4894]
[1738946107978,13.84472925,197.5,197.41,1.4894]
[1738946108172,0.03207116,197.49,197.45,0.03814536]
[1738946108571,13.84472925,197.46,197.45,0.03814536]
[1738946109072,13.84472925,197.46,197.34,3.0619]
[1738946109273,13.84472925,197.41,197.34,3.0619]
[1738946109573,0.7021,197.48,197.34,3.0619]
[1738946109574,13.84472925,197.44,197.34,3.0619]
[1738946110075,13.84472925,197.44,197.39,5.0637]
[1738946110278,0.03441095,197.41,197.37,0.0342581]
[1738946110479,13.8791402,197.41,197.37,0.0342581]
[1738946111780,13.8791402,197.41,197.37,5.0985581]
[1738946111981,13.8791402,197.41,197.37,0.0342581]
[1738946112181,0.03441095,197.41,197.37,0.0342581]
[1738946112382,0.03441095,197.41,197.37,5.0985581]
[1738946112681,0.03441095,197.41,197.37,0.0342581]
[1738946113978,0.03441095,197.41,197.37,5.0983581]
[1738946114177,0.03441095,197.41,197.37,0.0342581]
[1738946114483,0.03441095,197.41,197.4,5.0635]
[1738946114875,0.03441095,197.41,197.39,5.0638]
[1738946115278,0.03441095,197.41,197.37,0.0342581]
[1738946115478,0.03441095,197.41,197.4,5.0635]
[1738946116774,0.03441095,197.41,197.37,0.0342581]
[1738946117379,0.03441095,197.41,197.39,5.0637]
[1738946117574,0.03441095,197.41,197.37,0.0342581]
[1738946119177,0.03441095,197.41,197.39,5.0638]
[1738946122683,0.03441095,197.41,197.37,0.0342581]
[1738946122884,13.84472925,197.39,197.37,0.0342581]
[1738946123386,18.90862925,197.39,197.37,0.0342581]
[1738946123678,13.84472925,197.39,197.37,0.0342581]
[1738946123884,0.03441095,197.41,197.27,21.09070539]
[1738946123885,13.84472925,197.36,197.27,21.09070539]
[1738946124286,13.84472925,197.36,197.3,5.066]
[1738946124681,13.84472925,197.36,197.27,21.09070539]
[1738946124881,0.03711554,197.34,197.3,0.0347302]
[1738946125780,13.84472925,197.33,197.3,0.0347302]
[1738946126386,13.84472925,197.33,197.2,28.12094052]
[1738946126591,13.84472925,197.23,197.2,28.12094052]
[1738946127087,13.84472925,197.23,197.19,56.24188104]
[1738946127285,13.84472925,197.2,197.19,56.24188104]
[1738946127890,0.03503073,197.21,197.19,56.24188104]
[1738946129692,0.03503073,197.21,197.18,0.03221468]
[1738946133598,22.22178627,197.19,197.13,1.6141]
[1738946134196,0.03503073,197.21,197.13,1.6141]
[1738946134602,0.03503073,197.21,197.14,5.0702]
[1738946134998,0.03503073,197.21,197.15,0.03473446]
[1738946135601,0.03503073,197.21,197.16,5.0696]
[1738946135903,0.03503073,197.21,197.15,0.03473446]
[1738946136095,5.10363073,197.21,197.15,0.03473446]
[1738946136792,0.03503073,197.21,197.15,0.03473446]
[1738946139309,22.22178627,197.19,197.15,0.03473446]
[1738946142809,5.0692,197.18,197.15,0.03473446]
[1738946143706,27.29078627,197.19,197.15,0.03473446]
[1738946144212,22.22178627,197.19,197.11,5.0709]
[1738946144509,22.22178627,197.15,197.11,5.0709]
[1738946145411,22.25689913,197.15,197.11,5.10823257]
[1738946147307,22.25689913,197.15,197.11,0.03733257]
[1738946147707,22.25689913,197.15,197.05,1.601]
[1738946148007,22.22178627,197.1,197.01,1.6068]
[1738946148608,13.9111178,197.05,197.01,1.6068]
[1738946149011,0.03384363,197.05,197.01,1.64396386]
[1738946149317,13.9111178,197.1,197.01,1.64396386]
[1738946149911,13.9111178,197.1,197.07,5.0719]
[1738946150304,13.94490052,197.1,197.01,1.6068]
[1738946150507,13.94490052,197.1,197.08,5.0717]
[1738946151114,0.03378272,197.1,197.07,0.03733331]
[1738946151310,0.03378272,197.1,197.09,5.0715]
[1738946151610,5.0699,197.16,197.07,0.03733331]
[1738946151611,13.9111178,197.16,197.07,0.03733331]
[1738946151811,13.9111178,197.16,197.14,5.0702]
[1738946152015,13.9111178,197.16,197.07,0.03733331]
[1738946152211,13.9111178,197.16,197.04,13.9111178]
[1738946152413,13.9111178,197.16,197.13,5.0704]
[1738946152607,13.9111178,197.19,197.04,205.9111178]
[1738946152810,0.03272128,197.16,197.13,0.03246692]
[1738946153013,0.03272128,197.16,197.13,5.10276692]
[1738946154214,0.03272128,197.16,197.14,5.0702]
[1738946154519,0.03272128,197.16,197.13,0.03246692]
[1738946155218,0.03272128,197.16,197.15,5.0699]
[1738946155418,0.03272128,197.16,197.13,0.03246692]
[1738946155419,13.9111178,197.22,197.14,1.633]
[1738946155718,13.9111178,197.22,197.17,5.0693]
[1738946155919,13.9111178,197.3,197.14,195.2105]
[1738946155920,13.9111178,197.26,197.14,195.2105]
[1738946156119,13.9111178,197.26,197.23,5.0678]
[1738946156318,13.9111178,197.26,197.14,195.2105]
[1738946156614,0.03819153,197.26,197.23,0.03777605]
[1738946156820,13.9111178,197.29,197.14,195.2105]
[1738946157117,0.03326168,197.26,197.23,0.03742518]
[1738946157317,49.37198388,197.33,197.23,0.03742518]
[1738946157318,13.9111178,197.32,197.23,0.03742518]
[1738946157819,13.9111178,197.32,197.28,5.0665]
[1738946158018,49.37198388,197.33,197.28,5.0665]
[1738946158520,0.03304735,197.32,197.29,0.0331262]
[1738946161120,13.94416515,197.32,197.29,0.0331262]
[1738946161524,0.03304735,197.32,197.29,0.0331262]
[1738946162324,13.94416515,197.32,197.24,1.6464]
[1738946162524,13.9111178,197.26,197.24,1.6464]
[1738946163019,5.068,197.36,197.24,1.6464]
[1738946163020,13.9111178,197.29,197.24,1.6464]
[1738946163221,18.9791178,197.32,197.24,1.6464]
[1738946163526,0.0375904,197.28,197.25,0.03634777]
[1738946163725,13.9111178,197.26,197.25,0.03634777]
[1738946164223,5.0676,197.24,197.14,1.637]
[1738946164426,13.9111178,197.21,197.14,1.637]
[1738946164622,13.9111178,197.21,197.14,6.7072]
[1738946165326,0.03208317,197.19,197.16,0.03493687]
[1738946165724,13.9111178,197.18,197.16,0.03493687]
[1738946167132,0.03208317,197.19,197.16,0.03493687]
[1738946168227,0.03208317,197.19,197.16,5.10463687]
[1738946168930,0.03208317,197.19,197.16,0.03493687]
[1738946171927,0.03208317,197.19,197.17,5.0694]
[1738946172231,0.03208317,197.19,197.16,0.03493687]
[1738946173029,18.3711178,197.27,197.16,0.03493687]
[1738946173421,13.9111178,197.27,197.16,0.03493687]
[1738946173625,18.3711178,197.3,197.17,13.9111178]
[1738946173830,18.3711178,197.3,197.23,5.0676]
[1738946174130,13.9111178,197.27,197.17,192.0]
[1738946174328,13.9111178,197.27,197.25,0.03462848]
[1738946174329,5.0671,197.26,197.25,0.03462848]
[1738946174530,13.9111178,197.27,197.14,1.637]
[1738946174728,13.9111178,197.17,197.12,193.5086]
[1738946174927,13.9111178,197.17,197.13,5.0704]
[1738946175726,13.94902252,197.17,197.13,5.10316992]
[1738946175927,0.03790472,197.17,197.13,0.03276992]
[1738946176128,13.9111178,197.14,197.13,0.03276992]
[1738946176633,22.27489799,197.17,197.13,0.03276992]
[1738946177032,27.34439799,197.17,197.13,0.03276992]
[1738946177229,22.27489799,197.17,197.13,0.03276992]
[1738946178239,27.34429799,197.17,197.13,0.03276992]
[1738946178432,22.27489799,197.17,197.13,0.03276992]
[1738946179632,27.34459799,197.17,197.13,0.03276992]
[1738946180037,0.03790472,197.17,197.13,0.03276992]
[1738946180629,4.46,197.26,197.13,0.03276992]
[1738946180833,4.46,197.26,197.2,5.0685]
[1738946181137,4.46,197.28,197.13,192.0]
[1738946181339,22.23699327,197.21,197.14,5.0702]
[1738946181637,22.23699327,197.21,197.07,195.1155]
[1738946181833,0.03680313,197.19,197.16,5.10770775]
[1738946182038,22.23699327,197.25,197.16,5.0694]
[1738946182337,0.03601683,197.19,197.16,0.03350518]
[1738946183239,4.46,197.28,197.16,0.03350518]
[1738946183640,4.46,197.28,197.12,214.23699327]
[1738946183839,5.067,197.27,197.12,214.23699327]
[1738946184242,4.46,197.28,197.12,214.23699327]
[1738946184437,0.03892558,197.21,197.19,5.0689]